[Event "Titled Tuesday Blitz June 07 Early 2022"]
[White "Costachi, Mihnea"]
[Black "Howell, David W L"]
[WhiteFideId "1217518"]
[BlackFideId "410608"]
[WhiteElo "2476"]
[BlackElo "2559"]
[Result "0-1"]
[Round "11"]
[TimeControl "180+1"]
[Date "2022.06.07"]
[WhiteClock "0:00:57"]
[BlackClock "0:00:54"]

1. d4 {[%clk 0:03:00]}  f5 {[%clk 0:02:50]} 2. Bg5 {[%clk 0:02:59]}  g6 {[%clk 0:02:45]} 3. e3 {[%clk 0:02:59]}  Bg7 {[%clk 0:02:45]} 4. c4 {[%clk 0:02:58]}  Nf6 {[%clk 0:02:44]} 5. Nc3 {[%clk 0:02:59]}  O-O {[%clk 0:02:45]} 6. Nf3 {[%clk 0:02:57]}  d6 {[%clk 0:02:44]} 7. Be2 {[%clk 0:02:54]}  Nbd7 {[%clk 0:02:34]} 8. d5 {[%clk 0:02:53]}  Nc5 {[%clk 0:02:32]} 9. Nd4 {[%clk 0:02:52]}  Nfe4 {[%clk 0:02:28]} 10. Nxe4 {[%clk 0:02:48]}  Nxe4 {[%clk 0:02:29]} 11. Bh4 {[%clk 0:02:44]}  c5 {[%clk 0:02:24]} 12. dxc6 {[%clk 0:02:43]}  Qa5+ {[%clk 0:02:22]} 13. Kf1 {[%clk 0:02:43]}  g5 {[%clk 0:02:22]} 14. Bg3 {[%clk 0:02:35]}  bxc6 {[%clk 0:02:15]} 15. Nxc6 {[%clk 0:02:32]}  Qc7 {[%clk 0:02:13]} 16. Qd5+ {[%clk 0:02:10]}  Kh8 {[%clk 0:01:57]} 17. Nd4 {[%clk 0:01:52]}  Bb7 {[%clk 0:01:53]} 18. Qb5 {[%clk 0:01:52]}  Bxd4 {[%clk 0:01:24]} 19. exd4 {[%clk 0:01:52]}  f4 {[%clk 0:01:25]} 20. d5 {[%clk 0:01:34]}  fxg3 {[%clk 0:01:21]} 21. f3 {[%clk 0:01:34]}  Rab8 {[%clk 0:01:15]} 22. Ke1 {[%clk 0:01:28]}  Nc5 {[%clk 0:01:09]} 23. Qb4 {[%clk 0:01:24]}  e5 {[%clk 0:01:08]} 24. dxe6 {[%clk 0:01:16]}  Qg7 {[%clk 0:01:03]} 25. hxg3 {[%clk 0:01:11]}  Bxf3 {[%clk 0:01:00]} 26. Qd2 {[%clk 0:00:56]}  Rxb2 {[%clk 0:00:55]} 27. Qxd6 {[%clk 0:00:56]}  Rxe2+ {[%clk 0:00:54]} 28. Kd1 {[%clk 0:00:57]}  Qxa1# {[%clk 0:00:54]} 0-1


[Site "https://www.chess.com"]

[Event "Titled Tuesday Blitz June 07 Early 2022"]
[White "Gormally, Daniel W"]
[Black "Ambartsumova, Karina"]
[WhiteFideId "406465"]
[BlackFideId "4166299"]
[WhiteElo "2543"]
[BlackElo "2262"]
[Result "1-0"]
[Round "11"]
[TimeControl "180+1"]
[Date "2022.06.07"]
[WhiteClock "0:00:38"]
[BlackClock "0:00:17"]

1. e4 {[%clk 0:03:00]}  e5 {[%clk 0:02:59]} 2. Nf3 {[%clk 0:02:59]}  Nc6 {[%clk 0:02:59]} 3. Bb5 {[%clk 0:02:59]}  a6 {[%clk 0:03:00]} 4. Ba4 {[%clk 0:03:00]}  Nf6 {[%clk 0:03:00]} 5. O-O {[%clk 0:03:00]}  Be7 {[%clk 0:03:00]} 6. Re1 {[%clk 0:03:00]}  b5 {[%clk 0:03:00]} 7. Bb3 {[%clk 0:03:01]}  O-O {[%clk 0:03:01]} 8. a4 {[%clk 0:03:01]}  d5 {[%clk 0:03:01]} 9. axb5 {[%clk 0:02:56]}  dxe4 {[%clk 0:03:01]} 10. bxc6 {[%clk 0:02:57]}  exf3 {[%clk 0:03:01]} 11. Qxf3 {[%clk 0:02:57]}  e4 {[%clk 0:03:00]} 12. Qc3 {[%clk 0:02:39]}  Bd6 {[%clk 0:02:41]} 13. h3 {[%clk 0:02:39]}  Bf5 {[%clk 0:02:37]} 14. d4 {[%clk 0:02:34]}  exd3 {[%clk 0:02:33]} 15. cxd3 {[%clk 0:02:35]}  Bxd3 {[%clk 0:02:19]} 16. Bg5 {[%clk 0:02:34]}  Bxb1 {[%clk 0:01:30]} 17. Raxb1 {[%clk 0:02:16]}  Ne4 {[%clk 0:01:30]} 18. Bxd8 {[%clk 0:02:08]}  Nxc3 {[%clk 0:01:30]} 19. Bxc7 {[%clk 0:02:02]}  Nxb1 {[%clk 0:01:10]} 20. Bxd6 {[%clk 0:02:02]}  Rfd8 {[%clk 0:01:10]} 21. Bf4 {[%clk 0:01:37]}  Nd2 {[%clk 0:01:01]} 22. Ba2 {[%clk 0:01:37]}  Nc4 {[%clk 0:00:28]} 23. Bxc4 {[%clk 0:01:01]}  Rd4 {[%clk 0:00:28]} 24. Bxa6 {[%clk 0:01:01]}  Rxf4 {[%clk 0:00:24]} 25. c7 {[%clk 0:01:01]}  Rb4 {[%clk 0:00:18]} 26. Rd1 {[%clk 0:00:40]}  Rbb8 {[%clk 0:00:17]} 27. cxb8=Q+ {[%clk 0:00:40]}  Rxb8 {[%clk 0:00:18]} 28. Rc1 {[%clk 0:00:37]}  Kf8 {[%clk 0:00:11]} 29. Rc8+ {[%clk 0:00:36]}  Rxc8 {[%clk 0:00:12]} 30. Bxc8 {[%clk 0:00:37]}  Ke7 {[%clk 0:00:12]} 31. Ba6 {[%clk 0:00:36]}  Kd6 {[%clk 0:00:12]} 32. Bc4 {[%clk 0:00:37]}  f6 {[%clk 0:00:13]} 33. b3 {[%clk 0:00:37]}  Kc5 {[%clk 0:00:14]} 34. g3 {[%clk 0:00:37]}  h6 {[%clk 0:00:15]} 35. Kg2 {[%clk 0:00:37]}  g5 {[%clk 0:00:16]} 36. Kf3 {[%clk 0:00:38]}  Kd4 {[%clk 0:00:17]} 37. Kg4 {[%clk 0:00:38]} 1-0


[Site "https://www.chess.com"]

[Event "Titled Tuesday Blitz June 07 Early 2022"]
[White "Hambleton, Aman"]
[Black "Uskov, Artem"]
[WhiteFideId "2606577"]
[BlackFideId "34254854"]
[WhiteElo "2552"]
[BlackElo "2335"]
[Result "1-0"]
[Round "11"]
[TimeControl "180+1"]
[Date "2022.06.07"]
[WhiteClock "0:00:04"]
[BlackClock "0:01:15"]

1. b3 {[%clk 0:03:00]}  Nf6 {[%clk 0:02:56]} 2. Bb2 {[%clk 0:03:01]}  g6 {[%clk 0:02:57]} 3. Nf3 {[%clk 0:02:56]}  Bg7 {[%clk 0:02:57]} 4. c4 {[%clk 0:02:56]}  O-O {[%clk 0:02:57]} 5. e3 {[%clk 0:02:57]}  d6 {[%clk 0:02:57]} 6. Nc3 {[%clk 0:02:55]}  Nbd7 {[%clk 0:02:57]} 7. Be2 {[%clk 0:02:49]}  c5 {[%clk 0:02:58]} 8. d4 {[%clk 0:02:42]}  a6 {[%clk 0:02:59]} 9. O-O {[%clk 0:02:42]}  Rb8 {[%clk 0:02:58]} 10. Re1 {[%clk 0:02:23]}  Ne8 {[%clk 0:02:56]} 11. Qc2 {[%clk 0:02:11]}  Nc7 {[%clk 0:02:55]} 12. a4 {[%clk 0:02:05]}  b6 {[%clk 0:02:51]} 13. Rad1 {[%clk 0:01:53]}  Bb7 {[%clk 0:02:51]} 14. h3 {[%clk 0:01:45]}  e6 {[%clk 0:02:36]} 15. Ne4 {[%clk 0:01:09]}  Bxe4 {[%clk 0:02:29]} 16. Qxe4 {[%clk 0:01:09]}  Qe7 {[%clk 0:02:30]} 17. Qc2 {[%clk 0:00:50]}  Rfc8 {[%clk 0:02:27]} 18. Bf1 {[%clk 0:00:45]}  b5 {[%clk 0:02:23]} 19. a5 {[%clk 0:00:34]}  d5 {[%clk 0:02:18]} 20. dxc5 {[%clk 0:00:09]}  Bxb2 {[%clk 0:02:19]} 21. Qxb2 {[%clk 0:00:03]}  bxc4 {[%clk 0:02:20]} 22. c6 {[%clk 0:00:02]}  Nc5 {[%clk 0:02:17]} 23. Ne5 {[%clk 0:00:02]}  Nxb3 {[%clk 0:02:16]} 24. Ng4 {[%clk 0:00:02]}  d4 {[%clk 0:01:59]} 25. Bxc4 {[%clk 0:00:02]}  h5 {[%clk 0:01:54]} 26. Ne5 {[%clk 0:00:02]}  Nxa5 {[%clk 0:01:53]} 27. Qxd4 {[%clk 0:00:02]}  Nxc4 {[%clk 0:01:53]} 28. Nxc4 {[%clk 0:00:02]}  Nd5 {[%clk 0:01:54]} 29. Ne5 {[%clk 0:00:02]}  Rb4 {[%clk 0:01:52]} 30. Qa1 {[%clk 0:00:02]}  Rb6 {[%clk 0:01:51]} 31. e4 {[%clk 0:00:03]}  Nb4 {[%clk 0:01:51]} 32. Nd7 {[%clk 0:00:03]}  Rbxc6 {[%clk 0:01:49]} 33. Nf6+ {[%clk 0:00:02]}  Kf8 {[%clk 0:01:50]} 34. Nh7+ {[%clk 0:00:03]}  Kg8 {[%clk 0:01:47]} 35. Nf6+ {[%clk 0:00:03]}  Kf8 {[%clk 0:01:43]} 36. Nd5 {[%clk 0:00:03]}  e5 {[%clk 0:01:12]} 37. Nxe7 {[%clk 0:00:04]}  Nc2 {[%clk 0:01:13]} 38. Qxe5 {[%clk 0:00:03]}  Re6 {[%clk 0:01:14]} 39. Qh8+ {[%clk 0:00:03]}  Kxe7 {[%clk 0:01:14]} 40. Qxc8 {[%clk 0:00:04]}  Nxe1 {[%clk 0:01:15]} 41. Qd8# {[%clk 0:00:04]} 1-0


[Site "https://www.chess.com"]

[Event "Titled Tuesday Blitz June 07 Early 2022"]
[White "Jeet, Jain"]
[Black "Bryakin, Mikhail"]
[WhiteFideId "5073022"]
[BlackFideId "4165314"]
[WhiteElo "2055"]
[BlackElo "2417"]
[Result "1/2-1/2"]
[Round "11"]
[TimeControl "180+1"]
[Date "2022.06.07"]
[WhiteClock "0:00:04"]
[BlackClock "0:00:07"]

1. Nf3 {[%clk 0:03:00]}  g6 {[%clk 0:02:49]} 2. d4 {[%clk 0:02:57]}  Bg7 {[%clk 0:02:49]} 3. b3 {[%clk 0:02:54]}  d6 {[%clk 0:02:49]} 4. Bb2 {[%clk 0:02:54]}  c5 {[%clk 0:02:49]} 5. e3 {[%clk 0:02:54]}  cxd4 {[%clk 0:02:48]} 6. Bxd4 {[%clk 0:02:54]}  Nf6 {[%clk 0:02:47]} 7. c4 {[%clk 0:02:53]}  Nc6 {[%clk 0:02:47]} 8. Bb2 {[%clk 0:02:52]}  Qa5+ {[%clk 0:02:46]} 9. Qd2 {[%clk 0:02:47]}  Qxd2+ {[%clk 0:02:46]} 10. Nbxd2 {[%clk 0:02:47]}  Bf5 {[%clk 0:02:24]} 11. a3 {[%clk 0:02:36]}  Rc8 {[%clk 0:02:20]} 12. h3 {[%clk 0:02:36]}  h5 {[%clk 0:02:15]} 13. Be2 {[%clk 0:02:20]}  O-O {[%clk 0:02:05]} 14. O-O {[%clk 0:02:19]}  Rfd8 {[%clk 0:02:00]} 15. Nh4 {[%clk 0:02:08]}  Be6 {[%clk 0:01:58]} 16. e4 {[%clk 0:02:07]}  Nd7 {[%clk 0:01:32]} 17. Bxg7 {[%clk 0:02:06]}  Kxg7 {[%clk 0:01:32]} 18. Nhf3 {[%clk 0:01:46]}  Nde5 {[%clk 0:01:30]} 19. Rac1 {[%clk 0:01:39]}  a5 {[%clk 0:01:28]} 20. Rfd1 {[%clk 0:01:32]}  f6 {[%clk 0:01:24]} 21. Bf1 {[%clk 0:01:19]}  g5 {[%clk 0:01:19]} 22. Nxe5 {[%clk 0:01:09]}  dxe5 {[%clk 0:01:03]} 23. Nb1 {[%clk 0:01:00]}  Nd4 {[%clk 0:00:58]} 24. b4 {[%clk 0:00:53]}  Rc7 {[%clk 0:00:46]} 25. Nc3 {[%clk 0:00:45]}  Rdc8 {[%clk 0:00:36]} 26. Nd5 {[%clk 0:00:38]}  Bxd5 {[%clk 0:00:33]} 27. exd5 {[%clk 0:00:39]}  b6 {[%clk 0:00:27]} 28. Rb1 {[%clk 0:00:31]}  h4 {[%clk 0:00:24]} 29. f3 {[%clk 0:00:29]}  Kf7 {[%clk 0:00:24]} 30. Bd3 {[%clk 0:00:27]}  Ke8 {[%clk 0:00:24]} 31. bxa5 {[%clk 0:00:22]}  bxa5 {[%clk 0:00:24]} 32. Rb6 {[%clk 0:00:22]}  Rxc4 {[%clk 0:00:09]} 33. Bxc4 {[%clk 0:00:20]}  Rxc4 {[%clk 0:00:10]} 34. Rdb1 {[%clk 0:00:17]}  Rc5 {[%clk 0:00:10]} 35. d6 {[%clk 0:00:16]}  Rd5 {[%clk 0:00:03]} 36. Rb8+ {[%clk 0:00:13]}  Kf7 {[%clk 0:00:03]} 37. dxe7 {[%clk 0:00:13]}  Kxe7 {[%clk 0:00:03]} 38. R1b7+ {[%clk 0:00:13]}  Ke6 {[%clk 0:00:04]} 39. Ra7 {[%clk 0:00:12]}  Nc6 {[%clk 0:00:02]} 40. Rb6 {[%clk 0:00:11]}  Kd6 {[%clk 0:00:03]} 41. Raa6 {[%clk 0:00:11]}  Rc5 {[%clk 0:00:04]} 42. a4 {[%clk 0:00:09]}  Kc7 {[%clk 0:00:03]} 43. Rb5 {[%clk 0:00:04]}  Rc4 {[%clk 0:00:04]} 44. Rbxa5 {[%clk 0:00:02]}  Nxa5 {[%clk 0:00:04]} 45. Rxa5 {[%clk 0:00:03]}  Rc6 {[%clk 0:00:04]} 46. Rb5 {[%clk 0:00:03]}  Kd6 {[%clk 0:00:04]} 47. Rb4 {[%clk 0:00:03]}  Rc2 {[%clk 0:00:03]} 48. Rb8 {[%clk 0:00:03]}  Ra2 {[%clk 0:00:03]} 49. Ra8 {[%clk 0:00:03]}  Ke6 {[%clk 0:00:04]} 50. Kh2 {[%clk 0:00:04]}  Kf5 {[%clk 0:00:04]} 51. a5 {[%clk 0:00:04]}  Kf4 {[%clk 0:00:03]} 52. Rf8 {[%clk 0:00:04]}  f5 {[%clk 0:00:02]} 53. Ra8 {[%clk 0:00:04]}  e4 {[%clk 0:00:02]} 54. fxe4 {[%clk 0:00:04]}  Kxe4 {[%clk 0:00:03]} 55. a6 {[%clk 0:00:05]}  Kf4 {[%clk 0:00:03]} 56. a7 {[%clk 0:00:05]}  Ra3 {[%clk 0:00:03]} 57. Rb8 {[%clk 0:00:04]}  Rxa7 {[%clk 0:00:03]} 58. Rb4+ {[%clk 0:00:05]}  Ke3 {[%clk 0:00:03]} 59. Rb3+ {[%clk 0:00:05]}  Ke4 {[%clk 0:00:04]} 60. Rb4+ {[%clk 0:00:05]}  Kd3 {[%clk 0:00:05]} 61. Rb3+ {[%clk 0:00:05]}  Kd4 {[%clk 0:00:05]} 62. Rb4+ {[%clk 0:00:05]}  Kc5 {[%clk 0:00:05]} 63. Rb8 {[%clk 0:00:06]}  Rg7 {[%clk 0:00:05]} 64. Rf8 {[%clk 0:00:05]}  f4 {[%clk 0:00:05]} 65. Rc8+ {[%clk 0:00:05]}  Kd5 {[%clk 0:00:05]} 66. Rd8+ {[%clk 0:00:05]}  Ke4 {[%clk 0:00:05]} 67. Re8+ {[%clk 0:00:06]}  Kd3 {[%clk 0:00:06]} 68. Rb8 {[%clk 0:00:05]}  Rg6 {[%clk 0:00:05]} 69. Rb3+ {[%clk 0:00:05]}  Ke4 {[%clk 0:00:05]} 70. Rb4+ {[%clk 0:00:06]}  Ke3 {[%clk 0:00:06]} 71. Rb3+ {[%clk 0:00:06]}  Kd4 {[%clk 0:00:06]} 72. Rb4+ {[%clk 0:00:06]}  Kc3 {[%clk 0:00:07]} 73. Rb8 {[%clk 0:00:06]}  Re6 {[%clk 0:00:07]} 74. Rg8 {[%clk 0:00:06]}  Re5 {[%clk 0:00:07]} 75. Rb8 {[%clk 0:00:05]}  Kd3 {[%clk 0:00:06]} 76. Rb3+ {[%clk 0:00:05]}  Kc2 {[%clk 0:00:06]} 77. Rb8 {[%clk 0:00:04]}  Re3 {[%clk 0:00:06]} 78. Rd8 {[%clk 0:00:04]}  Rd3 {[%clk 0:00:05]} 79. Rg8 {[%clk 0:00:04]}  Rd5 {[%clk 0:00:05]} 80. Ra8 {[%clk 0:00:04]}  Kd3 {[%clk 0:00:06]} 81. Ra3+ {[%clk 0:00:04]}  Ke4 {[%clk 0:00:06]} 82. Ra4+ {[%clk 0:00:04]}  Kf5 {[%clk 0:00:07]} 83. Ra8 {[%clk 0:00:04]}  Ke4 {[%clk 0:00:07]} 84. Re8+ {[%clk 0:00:04]}  Re5 {[%clk 0:00:07]} 85. Ra8 {[%clk 0:00:05]}  Kf5 {[%clk 0:00:06]} 86. Rf8+ {[%clk 0:00:05]}  Kg6 {[%clk 0:00:05]} 87. Ra8 {[%clk 0:00:06]}  Re6 {[%clk 0:00:05]} 88. Ra5 {[%clk 0:00:05]}  Kf6 {[%clk 0:00:05]} 89. Kg1 {[%clk 0:00:05]}  Re2 {[%clk 0:00:05]} 90. Kf1 {[%clk 0:00:04]}  Re3 {[%clk 0:00:04]} 91. Kf2 {[%clk 0:00:04]}  Re5 {[%clk 0:00:05]} 92. Ra6+ {[%clk 0:00:04]}  Kf5 {[%clk 0:00:05]} 93. Ra8 {[%clk 0:00:05]}  Rb5 {[%clk 0:00:05]} 94. Rf8+ {[%clk 0:00:05]}  Ke4 {[%clk 0:00:06]} 95. Re8+ {[%clk 0:00:05]}  Re5 {[%clk 0:00:06]} 96. Ra8 {[%clk 0:00:05]}  Rd5 {[%clk 0:00:06]} 97. Re8+ {[%clk 0:00:04]}  Kf5 {[%clk 0:00:06]} 98. Rf8+ {[%clk 0:00:05]}  Kg6 {[%clk 0:00:07]} 99. Rg8+ {[%clk 0:00:05]}  Kf6 {[%clk 0:00:07]} 100. Rf8+ {[%clk 0:00:05]}  Kg7 {[%clk 0:00:07]} 101. Ra8 {[%clk 0:00:06]}  Rd3 {[%clk 0:00:06]} 102. Ra7+ {[%clk 0:00:05]}  Kf6 {[%clk 0:00:07]} 103. Ra6+ {[%clk 0:00:05]}  Kf5 {[%clk 0:00:07]} 104. Ra8 {[%clk 0:00:04]}  Kg6 {[%clk 0:00:08]} 105. Rg8+ {[%clk 0:00:04]}  Kh6 {[%clk 0:00:08]} 106. Ra8 {[%clk 0:00:05]}  Rb3 {[%clk 0:00:07]} 107. Rh8+ {[%clk 0:00:04]}  Kg7 {[%clk 0:00:07]} 108. Ra8 {[%clk 0:00:05]}  Kg6 {[%clk 0:00:06]} 109. Rg8+ {[%clk 0:00:05]}  Kf6 {[%clk 0:00:06]} 110. Rf8+ {[%clk 0:00:05]}  Ke7 {[%clk 0:00:05]} 111. Rg8 {[%clk 0:00:05]}  Rb5 {[%clk 0:00:06]} 112. Ra8 {[%clk 0:00:04]}  Kf7 {[%clk 0:00:06]} 113. Ra7+ {[%clk 0:00:04]}  Kf6 {[%clk 0:00:06]} 114. Ra8 {[%clk 0:00:04]}  Kf5 {[%clk 0:00:07]} 1/2-1/2


[Site "https://www.chess.com"]

[Event "Titled Tuesday Blitz June 07 Early 2022"]
[White "Korchmar, Vasiliy"]
[Black "Makarian, Rudik"]
[WhiteFideId "24131750"]
[BlackFideId "44105681"]
[WhiteElo "2370"]
[BlackElo "2398"]
[Result "0-1"]
[Round "11"]
[TimeControl "180+1"]
[Date "2022.06.07"]
[WhiteClock "0:00:01"]
[BlackClock "0:00:46"]

1. e4 {[%clk 0:03:00]}  c6 {[%clk 0:02:59]} 2. d4 {[%clk 0:03:00]}  d5 {[%clk 0:03:00]} 3. e5 {[%clk 0:03:01]}  c5 {[%clk 0:03:01]} 4. dxc5 {[%clk 0:03:01]}  e6 {[%clk 0:03:01]} 5. Be3 {[%clk 0:03:01]}  Nc6 {[%clk 0:03:01]} 6. Bb5 {[%clk 0:03:00]}  Ne7 {[%clk 0:02:58]} 7. c3 {[%clk 0:02:58]}  Bd7 {[%clk 0:02:52]} 8. Nf3 {[%clk 0:02:33]}  Nxe5 {[%clk 0:02:52]} 9. a4 {[%clk 0:02:29]}  Nxf3+ {[%clk 0:02:21]} 10. Qxf3 {[%clk 0:02:30]}  Nc6 {[%clk 0:02:22]} 11. Qg3 {[%clk 0:02:22]}  a6 {[%clk 0:02:11]} 12. Bd3 {[%clk 0:02:18]}  g6 {[%clk 0:02:09]} 13. h4 {[%clk 0:02:13]}  h5 {[%clk 0:02:04]} 14. Nd2 {[%clk 0:01:58]}  Bg7 {[%clk 0:02:00]} 15. Nf3 {[%clk 0:01:37]}  e5 {[%clk 0:01:51]} 16. Bxg6 {[%clk 0:01:18]}  fxg6 {[%clk 0:01:51]} 17. Qxg6+ {[%clk 0:01:18]}  Kf8 {[%clk 0:01:51]} 18. Ng5 {[%clk 0:00:50]}  Qf6 {[%clk 0:01:35]} 19. Nh7+ {[%clk 0:00:49]}  Rxh7 {[%clk 0:01:28]} 20. Qxh7 {[%clk 0:00:49]}  Qf5 {[%clk 0:01:26]} 21. Qxf5+ {[%clk 0:00:48]}  Bxf5 {[%clk 0:01:26]} 22. Bg5 {[%clk 0:00:35]}  d4 {[%clk 0:01:22]} 23. cxd4 {[%clk 0:00:31]}  exd4 {[%clk 0:01:20]} 24. O-O {[%clk 0:00:30]}  d3 {[%clk 0:01:01]} 25. Rad1 {[%clk 0:00:27]}  Re8 {[%clk 0:00:51]} 26. Rfe1 {[%clk 0:00:12]}  Re2 {[%clk 0:00:44]} 27. Rxe2 {[%clk 0:00:02]}  dxe2 {[%clk 0:00:45]} 28. Re1 {[%clk 0:00:01]}  Bd3 {[%clk 0:00:46]} 0-1


[Site "https://www.chess.com"]

[Event "Titled Tuesday Blitz June 07 Early 2022"]
[White "Kosteniuk, Alexandra"]
[Black "Vasquez Schroeder, Rodrigo"]
[WhiteFideId "4128125"]
[BlackFideId "3400042"]
[WhiteElo "2469"]
[BlackElo "2567"]
[Result "1-0"]
[Round "11"]
[TimeControl "180+1"]
[Date "2022.06.07"]
[WhiteClock "0:00:15"]
[BlackClock "0:00:09"]

1. e4 {[%clk 0:03:00]}  c5 {[%clk 0:02:59]} 2. Nf3 {[%clk 0:03:01]}  d6 {[%clk 0:02:59]} 3. Bb5+ {[%clk 0:03:00]}  Nc6 {[%clk 0:02:58]} 4. O-O {[%clk 0:02:59]}  Bd7 {[%clk 0:02:58]} 5. c3 {[%clk 0:02:58]}  Nf6 {[%clk 0:02:58]} 6. Re1 {[%clk 0:02:58]}  a6 {[%clk 0:02:59]} 7. Bc4 {[%clk 0:02:59]}  b5 {[%clk 0:02:56]} 8. Bf1 {[%clk 0:02:58]}  Bg4 {[%clk 0:02:57]} 9. a4 {[%clk 0:02:58]}  Rb8 {[%clk 0:02:54]} 10. axb5 {[%clk 0:02:57]}  axb5 {[%clk 0:02:55]} 11. Na3 {[%clk 0:02:52]}  b4 {[%clk 0:02:48]} 12. Nc4 {[%clk 0:02:52]}  bxc3 {[%clk 0:02:46]} 13. bxc3 {[%clk 0:02:52]}  e5 {[%clk 0:02:46]} 14. Ne3 {[%clk 0:02:45]}  Bd7 {[%clk 0:02:42]} 15. d4 {[%clk 0:02:38]}  cxd4 {[%clk 0:02:35]} 16. cxd4 {[%clk 0:02:39]}  Be7 {[%clk 0:02:36]} 17. Nd5 {[%clk 0:02:35]}  Nxd5 {[%clk 0:02:29]} 18. exd5 {[%clk 0:02:35]}  Nxd4 {[%clk 0:02:29]} 19. Nxd4 {[%clk 0:02:30]}  exd4 {[%clk 0:02:30]} 20. Bg5 {[%clk 0:02:24]}  f6 {[%clk 0:02:29]} 21. Bf4 {[%clk 0:01:51]}  O-O {[%clk 0:02:26]} 22. Qxd4 {[%clk 0:01:51]}  Re8 {[%clk 0:02:22]} 23. Bd3 {[%clk 0:01:46]}  Bf8 {[%clk 0:02:21]} 24. h4 {[%clk 0:01:42]}  Rxe1+ {[%clk 0:02:16]} 25. Rxe1 {[%clk 0:01:42]}  Qb6 {[%clk 0:02:17]} 26. Qe4 {[%clk 0:01:31]}  g6 {[%clk 0:01:58]} 27. Qf3 {[%clk 0:01:28]}  Re8 {[%clk 0:01:55]} 28. Be3 {[%clk 0:01:21]}  Qb4 {[%clk 0:01:50]} 29. Rb1 {[%clk 0:01:10]}  Qxh4 {[%clk 0:01:42]} 30. Rb7 {[%clk 0:01:10]}  Bc8 {[%clk 0:01:26]} 31. Rc7 {[%clk 0:01:05]}  f5 {[%clk 0:01:21]} 32. Bb5 {[%clk 0:00:55]}  Qd8 {[%clk 0:01:14]} 33. Ra7 {[%clk 0:00:47]}  Re4 {[%clk 0:01:10]} 34. Bc6 {[%clk 0:00:37]}  Re7 {[%clk 0:00:52]} 35. Ra8 {[%clk 0:00:36]}  Qc7 {[%clk 0:00:52]} 36. Bg5 {[%clk 0:00:31]}  Re1+ {[%clk 0:00:46]} 37. Kh2 {[%clk 0:00:32]}  Be7 {[%clk 0:00:28]} 38. Qc3 {[%clk 0:00:28]}  Re4 {[%clk 0:00:24]} 39. Bxe7 {[%clk 0:00:23]}  Rxe7 {[%clk 0:00:24]} 40. Qb4 {[%clk 0:00:21]}  Kg7 {[%clk 0:00:24]} 41. Qb2+ {[%clk 0:00:20]}  Kh6 {[%clk 0:00:22]} 42. Qf6 {[%clk 0:00:18]}  Bb7 {[%clk 0:00:09]} 43. Ra3 {[%clk 0:00:15]} 1-0


[Site "https://www.chess.com"]

[Event "Titled Tuesday Blitz June 07 Early 2022"]
[White "Kozak, Adam"]
[Black "Shipov, Sergei"]
[WhiteFideId "753246"]
[BlackFideId "4113624"]
[WhiteElo "2459"]
[BlackElo "2780"]
[Result "1-0"]
[Round "11"]
[TimeControl "180+1"]
[Date "2022.06.07"]
[WhiteClock "0:00:48"]
[BlackClock "0:00:14"]

1. Nf3 {[%clk 0:02:56]}  Nf6 {[%clk 0:02:59]} 2. c4 {[%clk 0:02:56]}  c5 {[%clk 0:02:58]} 3. g3 {[%clk 0:02:55]}  b6 {[%clk 0:02:58]} 4. Bg2 {[%clk 0:02:55]}  Bb7 {[%clk 0:02:58]} 5. O-O {[%clk 0:02:56]}  e6 {[%clk 0:02:59]} 6. Nc3 {[%clk 0:02:55]}  Be7 {[%clk 0:02:59]} 7. b3 {[%clk 0:02:54]}  O-O {[%clk 0:02:59]} 8. Bb2 {[%clk 0:02:52]}  d6 {[%clk 0:02:58]} 9. e3 {[%clk 0:02:47]}  Nbd7 {[%clk 0:02:58]} 10. d4 {[%clk 0:02:47]}  Ne4 {[%clk 0:02:57]} 11. Qc2 {[%clk 0:02:45]}  Nxc3 {[%clk 0:02:45]} 12. Bxc3 {[%clk 0:02:46]}  Nf6 {[%clk 0:02:43]} 13. Rad1 {[%clk 0:02:45]}  Qc7 {[%clk 0:02:41]} 14. Ne1 {[%clk 0:02:40]}  Bxg2 {[%clk 0:02:38]} 15. Nxg2 {[%clk 0:02:41]}  a6 {[%clk 0:02:38]} 16. d5 {[%clk 0:02:41]}  exd5 {[%clk 0:01:55]} 17. Bxf6 {[%clk 0:02:40]}  Bxf6 {[%clk 0:01:55]} 18. Rxd5 {[%clk 0:02:40]}  b5 {[%clk 0:01:52]} 19. Rd2 {[%clk 0:02:32]}  Be5 {[%clk 0:01:45]} 20. Nh4 {[%clk 0:02:28]}  bxc4 {[%clk 0:01:37]} 21. bxc4 {[%clk 0:02:27]}  Rab8 {[%clk 0:01:37]} 22. Qd3 {[%clk 0:02:14]}  Rb6 {[%clk 0:01:35]} 23. Nf3 {[%clk 0:02:10]}  Bf6 {[%clk 0:01:34]} 24. Rfd1 {[%clk 0:02:04]}  g6 {[%clk 0:01:32]} 25. Qd5 {[%clk 0:02:03]}  Rfb8 {[%clk 0:01:31]} 26. Kg2 {[%clk 0:02:03]}  Qe7 {[%clk 0:01:29]} 27. Rc2 {[%clk 0:01:59]}  Qe6 {[%clk 0:01:20]} 28. Rcd2 {[%clk 0:01:53]}  Be7 {[%clk 0:01:16]} 29. Ne1 {[%clk 0:01:41]}  Rb4 {[%clk 0:01:12]} 30. Rc2 {[%clk 0:01:36]}  Rb2 {[%clk 0:01:02]} 31. Qd3 {[%clk 0:01:30]}  R8b4 {[%clk 0:00:54]} 32. Rdd2 {[%clk 0:01:24]}  Rb1 {[%clk 0:00:50]} 33. Nf3 {[%clk 0:01:25]}  a5 {[%clk 0:00:48]} 34. Ng1 {[%clk 0:01:00]}  Rb6 {[%clk 0:00:19]} 35. Ne2 {[%clk 0:00:59]}  Bf6 {[%clk 0:00:19]} 36. Nf4 {[%clk 0:00:58]}  Qe5 {[%clk 0:00:17]} 37. Nd5 {[%clk 0:00:54]}  Rc6 {[%clk 0:00:16]} 38. Rc3 {[%clk 0:00:48]}  Bg7 {[%clk 0:00:14]} 39. Qxb1 {[%clk 0:00:48]} 1-0


[Site "https://www.chess.com"]